Cogmind - Beta 11 X10 @@@ ROGUE MODE // 2022.02.24 @ 21:14:44 Player: maxwell Result: Destroyed by as-42165 with Assembled Rifle Performance ------------- Evolutions (0) 0 Regions Visited (2) 400 Robots Destroyed (27) 135 Value Destroyed (734) 734 Prototype IDs (0) 0 Alien Tech Used (0) 0 Bonus (0) 0 TOTAL SCORE: 1269 Bonus ------- None Cogmind --------- Core Integrity 0/250 Matter 333/500 Energy 248/250 System Corruption 0% Temperature Cool (69) Movement Rolling (105) Ox1 Location -10/Mines Parts ------- > --- POWER (1) -------- Ion Engine > --- PROPULSION (2) --- Wheel Compact Wheel > --- UTILITY (2) ------ Large Storage Unit High-capacity Matter Pod > --- WEAPON (2) ------- Light Cannon > --- INVENTORY (15) --- Light Ion Engine Light Treads Cargo Storage Unit Structural Scanner Small Laser Particle Gun Light Assault Rifle Datajack Hammer Peak State ------------ > --- POWER ------------ Ion Engine > --- PROPULSION ------- Wheel Compact Wheel > --- UTILITY ---------- Large Storage Unit High-capacity Matter Pod > --- WEAPON ----------- Particle Gun Light Cannon > --- INVENTORY -------- Light Ion Engine Light Treads Cargo Storage Unit Structural Scanner Small Laser Particle Gun Datajack Hammer [Rating: 9] Favorites ----------- Power Ion Engine Engine Ion Engine Propulsion Light Treads Treads Light Treads Wheel Compact Wheel Utility Large Storage Unit Storage Large Storage Unit Protection Light Armor Plating Weapon EM Pulse Gun Energy Gun EM Pulse Gun Ballistic Gun Light Assault Rifle Ballistic Cannon Light Cannon Build | -11 -10 -10 ------- Run | Scr Mat Min Slots Evolved . | . . . Power . | . . . Propulsion . | . . . Utility . | . . . Weapon . | . . . Parts Attached 26 | 7 9 10 Power 3 | 1 1 1 Engine 3 | 1 1 1 Core . | . . . Reactor . | . . . Propulsion 9 | 3 3 3 Treads 3 | 2 1 . Leg . | . . . Wheel 6 | 1 2 3 Hover . | . . . Flight . | . . . Utility 5 | 1 3 1 Device . | . . . Storage 3 | 1 1 1 Processor . | . . . Hackware . | . . . Protection 2 | . 2 . Artifact . | . . . Weapon 9 | 2 2 5 Energy Gun 7 | 1 2 4 Energy Cannon . | . . . Ballistic Gun 1 | 1 . . Ballistic Cannon 1 | . . 1 Launcher . | . . . Special Weapon . | . . . Impact Weapon . | . . . Slashing Weapon . | . . . Piercing Weapon . | . . . Special Melee Weapon . | . . . Unidentified Prototypes . | . . . Parts Lost 11 | . 2 9 Power 1 | . . 1 Propulsion 3 | . . 3 Utility 2 | . 1 1 Weapon 5 | . 1 4 Highest Loss Streak 8 | . 1 8 To Critical Strikes . | . . . Average Slot Usage (%) 95 | . 98 87 Engine 12 | . 14 9 Treads 19 | . 25 . Wheel 8 | . 2 25 Storage 16 | . 14 25 Protection 9 | . 12 1 Energy Gun 18 | . 19 14 Ballistic Gun 5 | . 7 . Ballistic Cannon 2 | . . 8 Naked Turns . | . . . Heaviest Build 35 | 12 32 35 Greatest Support 40 | 40 40 32 Greatest Overweight (x) 2 | 2 1 2 Average Overweight (x) . | . . . Largest Inventory Capacity 15 | 8 15 15 Average Capacity 14 | 7 14 15 Most Carried 15 | 4 15 13 Average Carried 12 | 2 13 8 Final Capacity 15 | 8 15 15 Final Carried 14 | 4 14 10 Class Distribution -------------------- 100% | Mutant Dominant Class ---------------- Mutant | -10/Materials Mutant | -10/Mines Resources | -11 -10 -10 ----------- Run | Scr Mat Min Matter Collected 663 | 180 227 256 Remotely . | . . . Salvage Created 1055 | . 986 69 Parts 60 | . 52 8 Haulers Intercepted 2 | . 2 . Recyclers Shooed 2 | . 2 . Parts Field Recycled . | . . . Retrieved Matter . | . . . Parts Self-Destructed . | . . . Prevented . | . . . Kills | -11 -10 -10 ------- Run | Scr Mat Min Combat Hostiles Destroyed 25 | . 20 5 Guns 20 | . 18 2 Cannons 3 | . . 3 AOE 1 | . 1 . Classes Destroyed 8 | . 5 3 Worker 1 | . . 1 Hauler 2 | . 2 . Recycler 1 | . 1 . Watcher 1 | . 1 . Swarmer 4 | . 3 1 Grunt 17 | . 17 . Demolisher 1 | . . 1 Assembled 3 | . . 3 Best Kill Streak 4 | . 4 2 Combat Bots Only 3 | . 3 2 Max Kills in Single Turn 1 | . 1 1 Gunslinging . | . . . Exploded 1 | . 1 . Melee . | . . . Uniques/NPCs Destroyed . | . . . Combat | -11 -10 -10 -------- Run | Scr Mat Min Damage Taken 1583 | . 810 773 Core 251 | . 65 186 Absorbed by Shields . | . . . Core Remaining (%) 100 | 100 . . Volleys Fired 120 | . 83 37 Largest 2 | . 2 2 Hottest 100 | . 80 100 Shots Fired 218 | . 162 56 Gun 187 | . 162 25 Cannon 31 | . . 31 Launcher . | . . . Special . | . . . Kinetic 80 | . 49 31 Thermal 64 | . 51 13 Explosive . | . . . Electromagnetic 74 | . 62 12 Robot Hit Streak 13 | . 13 8 Robot Miss Streak 7 | . 3 7 Penetration Max . | . . . Secondary Targets 4 | . 4 . Max Gunslinging Chain 1 | . 1 . Shots Hit Robots 133 | . 105 28 Core Hits 54 | . 46 8 Critical Kills 1 | . 1 . Critical Parts Destroyed . | . . . Critical Strikes 4 | . 2 2 Burn 1 | . . 1 Destroy 1 | . 1 . Blast 1 | . . 1 Corrupt 1 | . 1 . Melee Attacks . | . . . Impact . | . . . Slashing . | . . . Piercing . | . . . Sneak Attacks . | . . . Combat Hostiles . | . . . Follow-up Attacks . | . . . Damage Inflicted 1915 | . 1428 487 Guns 1358 | . 1187 171 Cannons 264 | . . 264 Explosions 293 | . 241 52 Melee . | . . . Ramming . | . . . Kinetic 519 | . 255 264 Thermal 742 | . 617 125 Explosive . | . . . Electromagnetic 654 | . 556 98 Impact . | . . . Slashing . | . . . Piercing . | . . . Highest Corruption . | . . . Average Corruption . | . . . Corruption Purged . | . . . Corruption Blocked . | . . . Overload Shots . | . . . Overflow Damage 24 | . 5 19 Projectiles 19 | . . 19 Explosions 5 | . 5 . Melee . | . . . Knockbacks 2 | . . 2 Impact . | . . . Kinetic 2 | . . 2 Secondary . | . . . Self-Inflicted Damage 104 | . 86 18 Shots 4 | . 3 1 Rammed . | . . . Targets Rammed . | . . . Kicked . | . . . Crushed . | . . . Highest Temperature 371 | . 228 371 Average Temperature 88 | . 72 134 Received Heat Transfer 407 | . 306 101 Effects 4 | . 1 3 Shutdowns 1 | . . 1 Energy Bleed 1 | . 1 . Interference 1 | . . 1 Matter Decay 1 | . . 1 Siege Activations . | . . . Robots Corrupted 1 | . 1 . Combat Hostiles 1 | . 1 . Parts Fried 2 | . 2 . Impact Corruptions . | . . . Robots Melted . | . . . Combat Hostiles . | . . . Parts Melted 1 | . 1 . Heat Transferred 1559 | . 1150 409 Parts Sabotaged . | . . . Parts Stolen . | . . . Parts Stripped . | . . . Power Chain Reactions 5 | . 4 1 Missiles Intercepted . | . . . Alert | -11 -10 -10 ------- Run | Scr Mat Min Peak Influence 302 | . 302 90 Initial 83 | . . 83 Average 116 | . 145 51 Maximum Alert Level 1 | . 1 . Low Security (%) 77 | 100 67 100 Level 1 22 | . 32 . Level 2 . | . . . Level 3 . | . . . Level 4 . | . . . Level 5 . | . . . High Security . | . . . Max Security . | . . . Squads Dispatched 8 | . 8 . Investigation 5 | . 5 . Extermination . | . . . Reinforcement 3 | . 3 . Assault . | . . . Garrison . | . . . Intercept . | . . . Construction Impeded . | . . . Haulers Reinforced . | . . . Active Scanning Responses . | . . . Cargo Convoy Interrupts . | . . . Stealth | -11 -10 -10 --------- Run | Scr Mat Min Distress Signals . | . . . Communications Jammed . | . . . Distress Signals . | . . . Times Spotted 48 | . 33 15 Peak Tracking Total 4 | . 4 4 Tactical Retreats 2 | . . 2 Traps | -11 -10 -10 ------- Run | Scr Mat Min Traps Triggered 2 | . 2 . Indirectly . | . . . Trap Hack Attempts . | . . . Triggered . | . . . Disarmed . | . . . Reprogrammed . | . . . Reused . | . . . Traps Extracted . | . . . Installed . | . . . Triggered . | . . . Machines | -11 -10 -10 ---------- Run | Scr Mat Min Machines Disabled 1 | . 1 . Max in Single Turn 1 | . 1 . Machines Sabotaged . | . . . Garrisons Compromised . | . . . Overloaded Fab Kills . | . . . Hacking | -11 -10 -10 --------- Run | Scr Mat Min Machines Accessed 8 | . 7 1 Terminals 6 | . 5 1 Fabricators . | . . . Repair Stations . | . . . Recycling Units 2 | . 2 . Scanalyzers . | . . . Garrison Access . | . . . Total Hacks 14 | . 11 3 Successful 7 | . 6 1 Failed 7 | . 5 2 Catastrophic 2 | . 1 1 Database Lockouts . | . . . Manual 13 | . 10 3 Terminals 12 | . 9 3 Fabricators . | . . . Repair Stations . | . . . Recycling Units 2 | . 2 . Scanalyzers . | . . . Garrison Access . | . . . Terminal Hacks 3 | . 2 1 Part Schematic 1 | . . 1 Terminal Index 1 | . 1 . Locate Traps 1 | . 1 . Fabricator Hacks . | . . . Repair Station Hacks . | . . . Recycling Unit Hacks . | . . . Scanalyzer . | . . . Garrison Access Hacks . | . . . Unauthorized Hacks 4 | . 4 . Terminals 2 | . 2 . Disrupt 1 | . 1 . Operators 1 | . 1 . Fabricators . | . . . Repair Stations . | . . . Recycling Units 2 | . 2 . Tunnel 2 | . 2 . Scanalyzers . | . . . Garrison Access . | . . . Data Cores Recovered . | . . . Used . | . . . Hacking Detections 5 | . 4 1 Full Trace Events 1 | . 1 . Feedback Events . | . . . Feedback Blocked . | . . . Robot Schematics Acquired . | . . . Robots Built . | . . . Authchips . | . . . Time . | . . . Total Robot Build Rating . | . . . Part Schematics Acquired 1 | . . 1 Parts Built . | . . . Authchips . | . . . Time . | . . . Total Part Build Rating . | . . . Parts Repaired . | . . . Time . | . . . Parts Recycled . | . . . Recycled Matter . | . . . Retrieved Matter . | . . . Retrieved Components . | . . . Parts Scanalyzed . | . . . Part Schematics Acquired . | . . . Parts Damaged . | . . . Bothacking | -11 -10 -10 ------------ Run | Scr Mat Min Used RIF Installer . | . . . Robots Hacked . | . . . Non-combat . | . . . Combat . | . . . Robot Hacks Applied . | . . . Relay Couplers Released . | . . . Fabnet Peak Effective % . | . . . Robots Rewired . | . . . Allies Hacked . | . . . Hacks Repelled . | . . . Allies | -11 -10 -10 -------- Run | Scr Mat Min Total Allies . | . . . Largest Group . | . . . Highest-Rated Group . | . . . Highest-Rated Ally . | . . . Total Orders . | . . . Ally Attacks . | . . . Total Damage . | . . . Kills . | . . . Allies Corrupted . | . . . Allies Melted . | . . . Intel | -11 -10 -10 ------- Run | Scr Mat Min Robot Analysis Total . | . . . Derelict Logs Recovered 2 | . . 2 Drone Launches . | . . . Drone Recoveries . | . . . Exploration | -11 -10 -10 ------------- Run | Scr Mat Min Turns Passed 1805 | 83 1291 431 Spaces Moved 966 | 48 652 266 Core 10 | 10 . . Treads 574 | 35 539 . Legs . | . . . Wheels 382 | 3 113 266 Hover . | . . . Flight . | . . . Fastest Speed 50 | 50 95 95 Average Speed 136 | 146 148 104 Slowest Speed 160 | 160 160 130 Overloaded Moves . | . . . Propulsion Burnouts . | . . . Robots Hopped . | . . . Cave-ins Triggered . | . . . Exploration Rate (%) 57 | 4 97 72 Regions Visited 2 Branch Regions 1 Pre-discovered Areas 4 | . 2 2 Known Exits Taken . | . . . Unknown Exits Taken 2 | 1 1 . Scrap Searched . | . . . Spaces Dug . | . . . Terrain Destroyed 13 | . 11 2 Melee . | . . . Projectile . | . . . AOE 13 | . 11 2 Terrain Rammed . | . . . Walls Destroyed . | . . . Machines Disabled . | . . . Actions | -11 -10 -10 --------- Run | Scr Mat Min Total 1249 | 58 827 364 Wait 93 | . 47 46 Move 964 | 47 651 266 Hop . | . . . Pick Up 31 | 3 23 5 Fast Attach 9 | 7 1 1 Attach 16 | . 7 9 Detach 1 | 1 . . Swap 1 | . 1 . Drop 14 | . 14 . Fire 120 | . 83 37 Melee . | . . . Ram . | . . . Kick . | . . . Crush . | . . . Escape Stasis . | . . . Rewire . | . . . Trap . | . . . Miscellaneous . | . . . Route ------- -11/Scrapyard -10/Materials (discovered 4 exits: [*Mat x3] / *Min) -10/Mines (discovered 1 exit: [*Mat]) History --------- Turn | Location | Event 2 | -11/Scrapyard | Met Revision 17 20 | -11/Scrapyard | Discovered new exit (range 14) 84 | -11/Scrapyard | Entered Materials 303 | -10/Materials | Build established: Mutant 468 | -10/Materials | Discovered new exit (range 10) 729 | -10/Materials | Discovered new exit (range 15) 1022 | -10/Materials | Discovered new exit (range 5) 1322 | -10/Materials | Discovered new exit (range 16) 1375 | -10/Materials | Entered Mines 1379 | -10/Mines | Assembled infested the area 1383 | -10/Mines | Learned location of Zion (-6) 1469 | -10/Mines | Core integrity fell below 50% 1491 | -10/Mines | Discovered new exit (range 8) 1503 | -10/Mines | Lost 8 parts (1p2n1u4w) 1668 | -10/Mines | Core integrity fell below 20% 1806 | -10/Mines | Destroyed by as-42165 with Assembled Rifle Last Messages --------------- 01674_ Destroyed Asb. Rifle. 01701_ K-01 Serf destroyed. 01705_ Acquired 19 matter. 01708_ Acquired Wheel. 01710_ Acquired Lgt. Ion Engine. 01711_ Extracted 100 matter. 01731_ S-10 Pest destroyed. 01736_ Acquired 10 matter. 01740_ Acquired 1 matter. 01741_ Acquired 3 matter. 01742_ Acquired 1 matter. 01747_ Acquired Lgt. Assault Rifle. 01748_ Acquired 10 matter. 01750_ Acquired 4 matter. 01781_ as-64929 destroyed. 01790_ Particle Gun severed. 01792_ Destroyed Asb. Hover Unit. 01792_ as-60251 suffers critical hit (Blast). 01792_ as-60251 destroyed. 01794_ as-42165 knocked back. Map ----- +----------------------------------------------------+ | | | | | | | ?????????????????????????????????????????????????? | | ?????????????????????????????????????????????????? | | ?????????????????????????????????????????????????? | | ?????????????????????????????????????????????????? | | ?????????????????????????????????????????????????? | | ?????????????????????????????????????????????????? | | ?????????????????????????????????????????????????? | | ??????????????????????????? ?????????????????? | | ?????????????????????????? ???????????????? | | ?????????????????????????? ?????????????? | | ????????????????????????? ?????????????? | | ???????????????????????? ??????????????? | | ???????????????????????? ??????????????? | | ????????????????????????? #??????????????? | | ????????????#####????????? #???????????????? | | ???????????## ##????????? #???????????????? | | ???????????? ##??####### ##??????????????? | | ???????????? ##?# ## #????????####### | | ????????????# ### ### #???????## # | | ????????????# #??????## | | ??????####?## ### ## #??????## | | ?????## ## ## # # # # ##?##### | | ????## ##a% %%@ ### # | | ??### !%# ##### #### | | ?## $ | ! =%]% # #??? | | ?# !=! %= # == # ## ## #??? | | ## =*% # #?##?### ##### #??? | | # !%### #???????#######???## ##?? | | " =%==*#?# #??????????????????# ##? | | # * #?# #??????????????????# ## | | #?## # #??????????????????## | | #??## """ #???????????????????## | | ##???### """ #????????????????????## | | ####??????# """ #?????????????????????# | | ##?????????# #?????????????????????# | | ##??###?????##########?????????????????????## | | ##?# ##????????????????????????????????????### | | ## #??????????????????????????????????????## | | #???????????????????????????????????????## | | #???????????????????????????????########## | | #???????????????????????????????# | | ##???????????????????????????????# | | ###????????????????????????????????# ####### | | ##??????????????????????????????????# #?????? | | #??####?????????????????????????????# #?????? | | #### #???????????#?????????????????# !#?????? | | #### #??????????# ?????????????????# #?????? | +----------------------------------------------------+ Best States ------------- Heat Dissipation 25 Energy Generation 10 Energy Capacity 250 Matter Stores 381 Matter Capacity 500 Sight Range 16 Terrain Scan Density 10 Armor Coverage 150 Evasion (%) 41 Recoil Reduction 2 Item Schematics ----------------- Huge Storage Unit | -10/Mines | Hacked Robot Schematics ------------------ None Fabricated ------------ Nothing Alien Tech Used ----------------- None Achievements -------------- None Challenges ------------ None Game ------ Seed NuclearFissionShifter Manual? 0 Play Time 00:11:19 Cumulative 166.7 hours Start 2022.02.24 @ 21:04:55 End 2022.02.24 @ 21:14:44 Sessions 1 Manual Loads 0 Difficulty Rogue Special Mode None Game No. 276 Rogue 259 Adventurer 4 Explorer 13 Win Type - Total 8 Types 6/0/0/2/0/0/0/0/0 Lore% 65 Gallery% 81 Achievement% 68 Wizard Run 0 Options --------- ASCII 0 Keyboard 1 Movement Numpad Keybinds 0 Fullscreen 1 Font 18/SmallcapsGlow Map View 76x50 Tactical HUD 1 Map Filters NONE Filters NONE Steam 1 RUN: b25faf45-3f7b-42e4-b791-7927ff499328